bitfinex/quotes_ETHUSD_20250813
["timestamp","ask_amount","ask_price","bid_price","bid_amount"]
[1755049506535,0.55,4568.7,4568.6,0.4429]
[1755049507262,0.55,4568.7,4568.6,6.08587]
[1755049507553,0.55,4568.7,4568.6,7.67497]
[1755049508334,0.55,4568.7,4568.6,32.032]
[1755049508541,0.1116,4568.8,4568.6,32.032]
[1755049508737,0.002,4568.8,4568.7,27.049355]
[1755049509051,0.002,4568.8,4568.7,28.721815]
[1755049509257,0.002,4568.8,4568.7,37.63480644]
[1755049509578,0.002,4568.8,4568.7,38.01131469]
[1755049510290,0.00015263,4568.8,4568.7,38.01131469]
[1755049510577,0.00015263,4568.8,4568.7,38.32849357]
[1755049510955,0.00015263,4568.8,4568.7,38.01131469]
[1755049512308,0.00015263,4568.8,4568.7,38.32849357]
[1755049512445,0.00015263,4568.8,4568.7,38.43809357]
[1755049513086,1e-08,4569.1,4569.0,2.18866272]
[1755049513289,1e-08,4569.1,4569.0,6.29534985]
[1755049513472,1e-08,4569.1,4569.0,38.43694985]
[1755049515354,1e-08,4569.1,4569.0,8.43694985]
[1755049515556,1e-08,4569.1,4569.0,38.43694985]
[1755049517514,1e-08,4569.1,4569.0,30.80328713]
[1755049517680,1e-08,4569.1,4569.0,18.853319]
[1755049517874,1e-08,4569.1,4569.0,22.265319]
[1755049518067,1e-08,4569.1,4569.0,24.45398172]
[1755049518512,1e-08,4569.1,4569.0,36.15316272]
[1755049518661,1e-08,4569.1,4569.0,37.74226272]
[1755049518859,1e-08,4569.1,4569.0,37.63266272]
[1755049519062,1e-08,4569.1,4569.0,32.29826272]
[1755049519301,1e-08,4569.1,4569.0,31.130585]
[1755049519505,1e-08,4569.1,4569.0,35.71026272]
[1755049520462,1e-08,4569.1,4569.0,5.71026272]
[1755049520862,1e-08,4569.1,4569.0,30.1096]
[1755049521070,1e-08,4569.1,4569.0,24.748195]
[1755049521271,1e-08,4569.1,4569.0,15.73638]
[1755049521472,2.62660001,4569.1,4569.0,8.87288]
[1755049521678,2.62660001,4569.1,4569.0,3.5216]
[1755049521912,2.62660001,4569.1,4569.0,3.412]
[1755049522402,2.90062001,4569.1,4569.0,3.412]
[1755049523192,2.90062001,4569.1,4568.2,0.1096]
[1755049523193,0.55,4569.0,4568.2,0.1096]
[1755049523406,0.55,4568.6,4568.3,3.412]
[1755049523574,2.6266,4568.5,4568.4,3.412]
[1755049524376,0.9875,4568.5,4568.4,3.412]
[1755049524575,0.55,4568.5,4568.4,3.412]
[1755049524874,2.6266,4568.5,4568.4,3.412]
[1755049525075,2.6266,4568.5,4568.1,0.001]
[1755049525076,0.55,4568.4,4568.1,0.001]
[1755049525381,0.55,4568.3,4568.2,8.658]
[1755049525595,0.9875,4568.3,4568.2,8.658]
[1755049525786,2.7362,4568.3,4568.2,8.658]
[1755049528311,2.7362,4568.3,4568.2,10.932455]
[1755049528614,2.7362,4568.3,4568.2,8.658]
[1755049531897,0.55,4568.9,4568.2,25.47795]
[1755049532098,0.55,4568.5,4568.2,8.658]
[1755049533000,0.55,4568.5,4568.3,14.438591]
[1755049533305,0.55,4568.5,4568.4,3.412]
[1755049533500,1e-08,4569.1,4568.4,31.44502388]
[1755049533815,1e-08,4569.1,4568.9,2.18869088]
[1755049534013,1e-08,4569.1,4569.0,35.60066272]
[1755049534218,1e-08,4569.1,4569.0,35.71026272]
[1755049534390,1e-08,4569.1,4569.0,37.77236272]
[1755049534596,1e-08,4569.1,4569.0,38.0895416]
[1755049534918,1e-08,4569.1,4569.0,8.0895416]
[1755049535288,1e-08,4569.1,4569.0,38.0895416]
[1755049536797,1e-08,4569.1,4569.0,34.6775416]
[1755049537120,1e-08,4569.1,4569.0,38.0895416]
[1755049537983,1e-08,4569.1,4569.0,30.42677888]
[1755049538316,2.62380001,4569.1,4569.0,12.172843]
[1755049538529,0.99070001,4569.1,4569.0,12.172843]
[1755049538687,0.55000001,4569.1,4569.0,12.172843]
[1755049539127,1e-08,4569.1,4569.0,33.83877888]
[1755049539328,1e-08,4569.1,4569.0,33.5216]
[1755049539527,1e-08,4569.1,4569.0,26.286889]
[1755049539712,1e-08,4569.1,4569.0,17.098306]
[1755049539911,1e-08,4569.1,4569.0,6.059456]
[1755049540225,0.55,4569.0,4568.3,0.1096]
[1755049540389,0.55,4568.8,4568.4,3.411]
[1755049540591,2.0738,4568.7,4568.5,11.711308]
[1755049540830,2.6238,4568.7,4568.6,3.411]
[1755049541005,2.6238,4568.7,4568.6,13.366502]
[1755049541324,0.55,4568.7,4568.6,16.93592435]
[1755049541483,0.55,4568.7,4568.6,14.85667]
[1755049541690,0.55,4568.7,4568.6,33.5206]
[1755049543590,2.6238,4568.7,4568.6,5.80555]
[1755049543786,2.6238,4568.7,4568.6,9.27694]
[1755049543980,2.6238,4568.7,4568.6,5.75894]
[1755049544213,2.6238,4568.7,4568.6,7.484]
[1755049544723,0.55,4568.6,4568.3,0.1096]
[1755049545017,0.55,4568.6,4568.4,3.411]
[1755049545018,0.55,4568.5,4568.4,3.411]
[1755049545418,2.6238,4568.5,4568.4,3.411]
[1755049545599,2.6238,4568.5,4568.4,6.074186]
[1755049546001,2.6238,4568.5,4568.4,3.411]
[1755049547313,2.6238,4568.5,4568.4,7.423532]
[1755049548618,0.1096,4568.6,4568.4,7.423532]
[1755049548812,0.55,4568.5,4568.4,3.411]
[1755049549017,0.55,4568.5,4568.4,8.935839]
[1755049549217,0.55,4568.5,4568.4,10.23613]
[1755049549448,0.55,4568.5,4568.4,9.429874]
[1755049549649,0.55,4568.5,4568.4,8.875187]
[1755049549852,0.55,4568.5,4568.4,6.949147]
[1755049550546,0.1096,4568.6,4568.5,30.0]
[1755049550747,0.1096,4568.6,4568.5,5.485714]
[1755049550748,0.6596,4568.6,4568.5,5.485714]
[1755049550926,0.55,4568.5,4568.2,5.246]
[1755049551123,0.55,4568.5,4568.3,5.460703]
[1755049551328,0.55,4568.5,4568.4,4.048123]
[1755049551529,0.55,4568.5,4568.3,3.411]
[1755049551729,0.55,4568.5,4568.2,5.246]
[1755049551730,0.55,4568.4,4568.2,5.246]
[1755049551948,2.1831,4568.4,4568.2,5.246]
[1755049552166,2.1831,4568.4,4568.3,3.411]
[1755049552528,2.6238,4568.4,4568.3,3.411]
[1755049553157,2.6238,4568.4,4568.3,7.752487]
[1755049553364,0.55,4568.5,4568.3,7.752487]
[1755049553666,1e-08,4569.1,4568.4,30.65027046]
[1755049553851,1e-08,4569.1,4568.8,2.18871232]
[1755049554189,1e-08,4569.1,4569.0,0.1096]
[1755049554384,1e-08,4569.1,4569.0,32.29826272]
[1755049554672,1e-08,4569.1,4569.0,32.94853318]
[1755049554846,1e-08,4569.1,4569.0,33.39053318]
[1755049555043,1e-08,4569.1,4569.0,5.01063318]
[1755049555263,1e-08,4569.1,4569.0,35.01063318]
[1755049557076,1e-08,4569.1,4569.0,34.6775416]
[1755049557545,1e-08,4569.1,4569.0,33.0574416]
[1755049557745,1e-08,4569.1,4569.0,34.6775416]
[1755049559055,1e-08,4569.1,4569.0,35.01063318]
[1755049559255,1e-08,4569.1,4569.0,34.6934543]
[1755049559964,1e-08,4569.1,4569.0,35.01063318]
[1755049561798,0.002,4569.6,4569.2,2.18856692]
[1755049562024,0.002,4569.6,4569.2,36.24883738]
[1755049562198,0.002,4569.6,4569.2,38.32713738]
[1755049562909,0.002,4569.6,4569.2,36.09829582]
[1755049563224,0.002,4569.6,4569.2,35.76520424]
[1755049563367,0.9936,4569.3,4569.2,30.01400332]
[1755049563566,0.002,4569.3,4569.2,32.62934912]
[1755049563766,0.002,4569.3,4569.2,35.0407407]
[1755049563967,0.002,4569.3,4569.2,33.4206407]
[1755049564500,0.002,4569.3,4569.2,36.9832747]
[1755049564718,0.002,4569.3,4569.2,38.6033747]
[1755049565293,0.002,4569.3,4569.2,8.6033747]
[1755049565757,0.002,4569.3,4569.2,38.6033747]
[1755049566313,0.002,4569.3,4569.2,8.8220747]
[1755049566718,0.002,4569.3,4569.2,38.8220747]
[1755049567331,0.002,4569.3,4569.2,37.2019747]
[1755049567521,0.002,4569.3,4569.2,38.8220747]
[1755049567717,0.002,4569.3,4569.2,36.7437747]
[1755049569652,0.002,4569.3,4569.2,36.41068312]
[1755049569869,0.002,4569.3,4569.2,32.46480424]
[1755049570039,0.002,4569.3,4569.2,35.87380424]
[1755049571676,2.0912,4569.3,4569.2,35.87380424]
[1755049572163,0.002,4569.3,4569.2,36.5240747]
[1755049573563,0.002,4569.3,4569.2,36.19098312]
[1755049573731,0.002,4569.3,4569.2,35.87380424]
[1755049574534,0.002,4569.3,4569.2,5.87380424]
[1755049574760,0.002,4569.3,4569.2,35.87380424]
[1755049576367,2.6412,4569.3,4569.2,15.48122332]
[1755049576729,2.6412,4569.3,4569.2,27.07418532]
[1755049576932,2.6412,4569.3,4569.2,26.03591332]
[1755049577366,0.552,4569.3,4569.2,28.54165912]
[1755049577782,0.552,4569.3,4569.2,34.0024162]
[1755049578137,0.9936,4569.3,4569.2,34.0024162]
[1755049578336,2.6412,4569.3,4569.2,34.0024162]
[1755049578635,2.6412,4569.3,4569.2,6.5240747]
[1755049578968,2.6412,4569.3,4569.2,36.5240747]
[1755049578969,0.552,4569.3,4569.2,36.5240747]
[1755049579334,0.002,4569.3,4569.2,36.5240747]
[1755049580234,0.00014054,4569.3,4569.2,36.5240747]
[1755049581283,1e-08,4569.4,4569.3,2.40721902]
[1755049581484,1e-08,4569.4,4569.3,33.05748948]
[1755049581682,1e-08,4569.4,4569.3,35.49829754]
[1755049582238,1e-08,4569.6,4569.5,2.40712324]
[1755049582443,1e-08,4569.6,4569.5,36.4653937]
[1755049582984,1e-08,4569.6,4569.5,38.5436937]
[1755049583346,1e-08,4569.6,4569.5,38.6311257]
[1755049584476,0.002,4570.1,4570.0,2.1881838]
[1755049584647,0.002,4570.1,4570.0,35.8148838]
[1755049584848,0.002,4570.1,4570.0,38.65305426]
[1755049585076,0.002,4570.1,4570.0,37.03295426]
[1755049585381,0.002,4570.1,4570.0,36.57475426]
[1755049586150,0.002,4570.1,4570.0,41.81975426]
[1755049587637,0.002,4570.1,4570.0,38.19305426]
[1755049587843,0.002,4570.1,4570.0,41.60105426]
[1755049590072,0.002,4570.1,4570.0,11.60105426]
[1755049590280,0.00048674,4570.5,4570.4,2.18799229]
[1755049590572,0.00048674,4570.5,4570.4,35.92339152]
[1755049593069,0.00048674,4570.5,4570.4,36.2564831]
[1755049594162,0.00048674,4570.5,4570.4,6.2564831]
[1755049594568,0.00048674,4570.5,4570.4,36.2564831]
[1755049594894,0.00048674,4570.5,4570.4,35.92339152]
[1755049595093,2.05528674,4570.5,4570.4,33.5156]
[1755049595275,2.60528674,4570.5,4570.4,33.5156]
[1755049596695,2.60528674,4570.5,4570.4,33.406]
[1755049596893,2.60528674,4570.5,4570.4,33.72317888]
[1755049597058,2.60528674,4570.5,4570.4,33.406]
[1755049598861,2.87717541,4570.5,4570.4,30.0]
[1755049599187,2.87717541,4570.5,4570.4,3.406]
[1755049599402,2.60528674,4570.5,4570.4,4.05627046]
[1755049599708,2.60528674,4570.5,4570.4,34.05627046]
[1755049600402,2.60528674,4570.5,4570.4,33.73909158]
[1755049600602,2.60528674,4570.5,4570.4,33.406]
[1755049600980,2.87717541,4570.5,4570.4,30.0]
[1755049601182,2.87717541,4570.5,4570.0,5.245]
[1755049601183,0.55,4570.4,4570.3,30.0]
[1755049601506,2.6048,4570.4,4570.3,3.406]
[1755049601707,2.7144,4570.4,4570.3,3.406]
[1755049601875,2.7144,4570.4,4570.3,33.406]
[1755049602408,0.002,4570.7,4570.4,32.18799229]
[1755049602606,0.002,4570.7,4570.5,33.406]
[1755049602905,0.002,4570.7,4570.6,32.83816701]
[1755049607712,0.002,4570.7,4570.6,2.83816701]
[1755049608010,0.002,4570.7,4570.6,32.83816701]
[1755049610217,0.002,4570.7,4570.6,33.27846701]
[1755049610556,0.002,4570.7,4570.6,34.78156701]
[1755049610686,0.002,4570.7,4570.6,33.27846701]
[1755049610878,0.002,4570.7,4570.6,32.83816701]
[1755049612282,0.002,4570.7,4570.6,32.94776701]
[1755049612492,0.00031114,4571.0,4570.9,2.18775295]
[1755049612696,0.00031114,4571.0,4570.9,36.03644453]
[1755049614629,0.00031114,4571.0,4570.9,36.35362341]
[1755049615926,0.00031114,4571.0,4570.9,6.79392341]
[1755049616313,0.00031114,4571.0,4570.9,36.79392341]
[1755049616519,0.00031114,4571.0,4570.9,38.29702341]
[1755049617028,0.00031114,4571.0,4570.9,38.54993147]
[1755049617233,0.00031114,4571.0,4570.9,37.04683147]
[1755049617433,0.002,4571.4,4571.1,0.2187]
[1755049617736,0.002,4571.4,4571.3,2.40626152]
[1755049617931,0.002,4571.4,4571.3,32.71851977]
[1755049618228,0.002,4571.4,4571.3,35.06869865]
[1755049618795,0.002,4571.4,4571.3,33.56559865]
[1755049619022,0.002,4571.4,4571.3,35.06869865]
[1755049619702,0.002,4571.4,4571.3,33.12529865]
[1755049620229,0.002,4571.4,4571.3,33.28371977]
[1755049620891,0.002,4571.4,4571.3,32.82811977]
[1755049621098,0.002,4571.4,4571.3,35.42929865]
[1755049621298,0.002,4571.4,4571.3,33.12529865]
[1755049621834,0.002,4571.4,4571.3,33.58089865]
[1755049622633,0.002,4571.9,4571.3,33.58089865]
[1755049622634,0.00033377,4571.9,4571.8,2.18732228]
[1755049622882,0.00033377,4571.9,4571.8,35.59232228]
[1755049623037,0.00033377,4571.9,4571.8,35.90458053]
[1755049623363,0.00033377,4571.9,4571.8,36.18216571]
[1755049623871,0.00033377,4571.9,4571.8,36.2874262]
[1755049624457,0.46893377,4571.9,4571.8,36.2874262]
[1755049624655,0.46893377,4571.9,4571.8,35.97516795]
[1755049625199,2.60713377,4571.9,4571.8,29.89585467]
[1755049625477,2.60713377,4571.9,4571.8,31.61854667]
[1755049625972,2.60713377,4571.9,4571.8,34.1181272]
[1755049625973,0.00033377,4571.9,4571.8,34.1181272]
[1755049626322,0.00033377,4571.9,4571.8,36.5051262]
[1755049626631,0.00033377,4571.9,4571.8,36.80230508]
[1755049626831,0.00033377,4571.9,4571.8,37.25790508]
[1755049627138,0.00033377,4571.9,4571.8,38.75350508]
[1755049627938,0.00033377,4571.9,4571.8,36.80230508]
[1755049628680,0.00033377,4571.9,4571.8,38.64390508]
[1755049628823,0.00033377,4571.9,4571.8,42.48464647]
[1755049630168,0.00033377,4571.9,4571.8,32.67926795]
[1755049630336,0.00033377,4571.9,4571.8,36.69270508]
[1755049630973,0.00033377,4571.9,4571.8,33.28870508]
[1755049631124,0.00033377,4571.9,4571.8,32.67926795]
[1755049631319,0.00033377,4571.9,4571.8,36.08326795]
[1755049631525,0.46893377,4571.9,4571.8,35.86456795]
[1755049631746,0.46893377,4571.9,4571.8,32.46056795]
[1755049632066,2.05713377,4571.9,4571.8,35.86456795]
[1755049632265,2.05713377,4571.9,4571.8,32.46056795]
[1755049632567,1.79497593,4571.9,4571.8,35.86456795]
[1755049632763,0.002,4572.4,4572.3,2.18708308]
[1755049632931,1.5902,4572.4,4572.3,35.59008308]
[1755049633128,0.002,4572.4,4572.3,35.90234133]
[1755049633370,0.002,4572.4,4572.3,36.19952021]
[1755049633566,0.002,4572.4,4572.3,32.18708308]
[1755049633567,1.5902,4572.4,4572.3,32.18708308]
[1755049633868,1.5902,4572.4,4572.3,33.403]
[1755049634377,1.5902,4572.4,4572.3,3.403]
[1755049634588,1.5902,4572.4,4571.9,30.0]
[1755049634749,0.4686,4572.3,4571.9,30.0]
[1755049634938,1.5882,4572.2,4572.0,3.403]
[1755049635132,0.002,4572.4,4572.1,27.775445]
[1755049635332,0.002,4572.4,4572.2,35.242]
[1755049635586,0.002,4572.4,4572.3,11.494306]
[1755049635737,0.002,4572.4,4572.3,3.403]
[1755049635930,0.002,4572.4,4572.3,4.204225]
[1755049636131,0.002,4572.4,4572.3,5.242]
[1755049636379,2.6088,4572.4,4572.3,8.645]
[1755049636633,2.86968,4572.4,4572.3,8.645]
[1755049638449,0.55,4572.3,4572.0,5.242]
[1755049638655,2.6068,4572.3,4572.1,3.403]
[1755049638998,2.6068,4572.2,4572.1,3.403]
[1755049639313,0.55,4571.9,4571.7,5.242]
[1755049639478,0.55,4571.9,4571.8,3.403]
[1755049639673,0.286968,4572.2,4571.8,3.403]
[1755049640004,0.55,4571.8,4571.7,5.242]
[1755049640184,0.55,4571.8,4571.7,8.645]
[1755049640393,2.6068,4571.8,4571.7,8.645]
[1755049641256,2.7164,4571.8,4571.7,8.645]
[1755049645603,2.2478,4571.8,4571.7,8.645]
[1755049645798,2.7164,4571.8,4571.7,8.645]
[1755049646302,2.98804,4571.8,4571.7,5.242]
[1755049646602,2.98804,4571.8,4571.7,8.646]
[1755049647014,2.98804,4571.8,4571.7,5.242]
[1755049647411,0.55,4571.7,4571.3,0.001]
[1755049647614,0.55,4571.5,4571.4,8.647]
[1755049647787,1.11158665,4571.5,4571.4,8.647]
[1755049647987,3.16838665,4571.5,4571.4,8.647]
[1755049648471,3.27798665,4571.5,4571.4,8.647]
[1755049648671,3.27798665,4571.5,4571.3,5.244]
[1755049649010,2.6068,4571.4,4571.3,5.244]
[1755049649182,3.20834525,4571.4,4571.3,5.244]
[1755049649714,2.6068,4571.4,4571.3,5.244]
[1755049649896,2.6068,4571.4,4571.3,8.648]
[1755049650581,2.6068,4571.4,4571.3,5.244]
[1755049650792,2.6068,4571.4,4571.3,8.648]
[1755049651307,2.6068,4571.4,4571.1,5.244]
[1755049651308,0.55,4571.3,4571.1,5.244]
[1755049651508,0.82164,4571.3,4571.2,3.404]
[1755049651707,0.1096,4571.3,4571.2,3.404]
[1755049652178,2.6656,4571.3,4571.2,3.404]
[1755049653317,0.55,4571.2,4571.1,5.244]
[1755049653475,4.74360938,4571.2,4571.1,5.244]
[1755049653671,4.74360938,4571.2,4571.1,3.404]
[1755049653871,4.74360938,4571.2,4570.8,5.244]
[1755049653872,0.55,4571.1,4570.8,5.244]
[1755049654114,0.55,4570.9,4570.8,5.244]
[1755049654304,4.74375295,4570.9,4570.8,5.244]
[1755049654504,4.85335295,4570.9,4570.8,5.244]
[1755049654819,0.55,4570.6,4570.5,0.001]
[1755049654999,1.09034578,4570.6,4570.5,3.405]
[1755049655199,3.20594578,4570.6,4570.5,3.405]
[1755049655732,3.20594578,4570.6,4570.1,5.244]
[1755049655880,0.6596,4570.6,4570.1,5.244]
[1755049656083,0.55,4570.4,4570.1,5.244]
[1755049656476,2.556,4570.4,4570.1,5.244]
[1755049656975,0.55,4570.4,4570.3,3.406]
[1755049657175,2.6656,4570.4,4570.3,0.001]
[1755049657417,2.93216,4570.4,4570.3,3.406]
[1755049657573,5.12015229,4570.4,4570.3,3.406]
[1755049657921,5.12015229,4570.4,4570.1,5.244]
[1755049657922,2.73808804,4570.2,4570.1,5.244]
[1755049658220,0.6596,4570.2,4570.1,5.244]
[1755049658524,2.6656,4570.2,4570.1,5.244]
[1755049658685,3.15096198,4570.2,4570.1,5.244]
[1755049659079,1.14496198,4570.2,4570.1,5.244]
[1755049659290,2.6656,4570.2,4570.1,8.649]
[1755049659898,0.1096,4570.2,4570.1,8.649]
[1755049661123,0.1096,4570.2,4570.1,8.65]
[1755049662503,0.6596,4570.2,4570.1,9.0955]
[1755049663104,0.6596,4570.2,4570.1,8.65]
[1755049663705,0.92616,4570.2,4570.1,8.65]
[1755049663936,2.6656,4570.2,4570.1,5.245]
[1755049664134,2.6656,4570.2,4570.1,8.65]
[1755049665928,2.6656,4570.2,4570.1,5.245]
[1755049666137,2.6656,4570.2,4570.1,8.65]
[1755049666343,4.85368804,4570.2,4570.1,5.245]
[1755049666649,5.55785379,4570.2,4570.1,8.65]
[1755049667312,5.55785379,4570.2,4570.0,0.001]
[1755049667313,2.73813592,4570.1,4570.0,0.001]
[1755049667648,4.74413592,4570.1,4570.0,0.001]
[1755049668713,4.74413592,4570.1,4570.0,3.406]
[1755049669027,2.7381838,4570.0,4569.9,0.001]
[1755049669230,2.556,4570.0,4569.9,0.001]
[1755049669651,4.7441838,4570.0,4569.9,0.001]
[1755049670217,2.73837535,4569.6,4569.3,5.246]
[1755049670416,3.23104168,4569.6,4569.5,3.406]
[1755049670749,5.23704168,4569.6,4569.5,3.406]
[1755049671162,0.55,4569.5,4569.3,5.246]
[1755049671369,0.6596,4569.4,4569.3,5.246]
[1755049671772,2.6656,4569.4,4569.3,5.246]
[1755049671965,3.20027043,4569.4,4569.3,5.246]
[1755049672157,5.38874156,4569.4,4569.3,5.246]
[1755049672666,5.38874156,4569.4,4569.3,8.651]
[1755049673043,3.20027043,4569.4,4569.3,8.651]
[1755049674280,1.19427043,4569.4,4569.3,8.651]
[1755049674579,0.6596,4569.4,4569.3,8.651]
[1755049675140,0.1096,4569.4,4569.3,8.651]
[1755049675341,0.1096,4569.4,4569.3,9.40875825]
[1755049675684,0.1096,4569.4,4569.3,10.85815825]
[1755049675982,0.1096,4569.5,4569.3,10.85815825]
[1755049676183,0.1096,4569.5,4569.3,8.651]
[1755049676474,0.1096,4569.8,4569.4,1.8949]
[1755049676687,0.1096,4569.8,4569.5,5.2999]
[1755049677177,0.55,4569.7,4569.6,0.4455]
[1755049677358,0.1096,4569.8,4569.6,1.8949]
[1755049677556,0.6596,4569.8,4569.7,4.8544]
[1755049677758,0.6596,4569.8,4569.7,5.2999]
[1755049677947,0.1096,4569.8,4569.7,5.2999]
[1755049678378,0.1096,4569.8,4569.7,3.8505]
[1755049679109,0.1096,4569.8,4569.7,5.2999]
[1755049679541,0.1096,4570.3,4569.7,5.2999]
[1755049679693,0.1096,4570.3,4569.8,0.4531]
[1755049680036,0.1096,4570.3,4569.9,33.405]
[1755049680187,0.1096,4570.3,4570.0,0.4531]
[1755049680393,0.55,4570.2,4570.1,3.405]
[1755049680593,0.55,4570.2,4570.1,8.8871]
[1755049681017,0.55,4570.2,4570.1,7.2671]
[1755049682013,0.55,4570.2,4570.1,6.813]
[1755049682452,0.55,4570.2,4570.1,3.404]
[1755049684605,0.55,4570.2,4570.1,3.8571]
[1755049685129,0.552,4570.2,4570.1,3.8571]
[1755049687119,0.552,4570.2,4570.1,3.404]
[1755049687322,0.002,4570.2,4570.1,3.8571]
[1755049687632,0.552,4570.2,4570.1,5.252]
[1755049687805,0.002,4570.2,4570.1,5.252]
[1755049688299,0.552,4570.2,4570.1,5.252]
[1755049689048,0.552,4570.2,4570.1,3.8571]
[1755049689333,0.552,4570.2,4570.1,3.404]
[1755049689838,2.4395,4570.2,4570.1,3.404]
[1755049690014,2.69441,4570.2,4570.1,3.404]
[1755049690998,0.80691,4570.2,4570.1,3.404]
[1755049691198,0.552,4570.2,4570.1,3.404]
[1755049692010,1.994,4570.2,4570.1,3.404]
[1755049692536,2.4395,4570.2,4570.1,3.404]
[1755049693238,1.994,4570.2,4570.1,8.65]
[1755049693436,0.552,4570.2,4570.1,8.65]
[1755049694808,0.552,4570.2,4570.1,9.1031]
[1755049695027,0.1116,4570.2,4570.1,9.1031]
[1755049695343,0.1116,4570.2,4570.1,8.65]
[1755049695501,0.6616,4570.2,4570.1,5.246]
[1755049695706,2.5491,4570.2,4570.1,8.649]
[1755049695927,2.80401,4570.2,4570.1,5.246]
[1755049696131,4.99209804,4570.2,4570.1,5.246]
[1755049696330,4.99209804,4570.2,4570.1,8.649]
[1755049696719,2.80401,4570.2,4570.1,8.649]
[1755049696918,0.55,4570.1,4569.8,5.246]
[1755049697137,0.55,4569.9,4569.8,5.246]
[1755049697328,2.5471,4569.9,4569.8,8.649]
[1755049697714,0.6596,4569.9,4569.8,8.649]
[1755049698110,2.1016,4569.9,4569.8,5.246]
[1755049698315,2.5471,4569.9,4569.8,8.649]
[1755049698561,2.827501,4569.9,4569.8,8.649]
[1755049699052,0.940001,4569.9,4569.8,8.649]
[1755049699218,2.5471,4569.9,4569.8,8.649]
[1755049700149,4.73533168,4569.9,4569.8,8.649]
[1755049700654,2.5471,4569.9,4569.8,8.649]
[1755049701418,0.6596,4569.9,4569.8,8.649]
[1755049702241,0.1096,4569.9,4569.8,9.1021]
[1755049702630,0.1096,4569.9,4569.8,8.649]
[1755049703153,2.1016,4569.9,4569.8,8.649]
[1755049703325,2.35651,4569.9,4569.8,8.649]
[1755049704553,2.80201,4569.9,4569.8,5.246]
[1755049704765,2.80201,4569.9,4569.8,8.649]
[1755049704961,2.80201,4569.9,4569.8,5.246]
[1755049705471,0.91451,4569.9,4569.8,5.246]
[1755049705627,0.55,4569.9,4569.8,5.246]
[1755049705961,2.1016,4569.9,4569.8,5.246]
[1755049706161,2.5471,4569.9,4569.8,5.246]
[1755049706455,2.5471,4569.9,4569.8,8.649]
[1755049706758,0.6596,4569.9,4569.8,8.649]
[1755049707862,2.80401,4569.9,4569.8,8.649]
[1755049710480,0.91651,4569.9,4569.8,8.649]
[1755049711043,2.38341,4569.9,4569.8,8.649]
[1755049711243,2.82551,4569.9,4569.8,8.649]
[1755049717279,0.91651,4569.9,4569.8,8.649]
[1755049717455,0.6616,4569.9,4569.8,8.649]
[1755049718866,2.1285,4569.9,4569.8,8.649]
[1755049719444,0.6616,4569.9,4569.8,8.649]
[1755049720168,2.5706,4569.9,4569.8,8.649]
[1755049720375,2.5706,4569.9,4569.8,8.648]
[1755049720575,2.82786,4569.9,4569.8,8.648]
[1755049720960,5.01609168,4569.9,4569.8,8.648]
[1755049721279,5.01609168,4569.9,4569.5,0.001]
[1755049721280,2.73837535,4569.6,4569.5,0.001]
[1755049721482,2.73837535,4569.6,4569.5,3.402]
[1755049721683,4.75697535,4569.6,4569.5,3.402]
[1755049721985,3.28904826,4569.6,4569.5,3.402]
[1755049722655,5.47742361,4569.6,4569.5,3.402]
[1755049724585,3.28904826,4569.6,4569.5,3.402]
[1755049724885,0.6596,4569.6,4569.5,3.402]
[1755049725451,2.5686,4569.6,4569.5,3.402]
[1755049726046,4.75697535,4569.6,4569.5,3.402]
[1755049726681,2.5686,4569.6,4569.5,3.402]
[1755049728975,4.75697535,4569.6,4569.5,3.402]
[1755049729172,0.55,4569.5,4568.9,5.247]
[1755049729377,2.73864349,4569.1,4568.9,5.247]
[1755049729589,2.5686,4569.0,4568.9,5.247]
[1755049729782,4.75726272,4569.0,4568.9,5.247]
[1755049729988,6.9638184,4569.0,4568.9,5.247]
[1755049730590,6.9638184,4569.0,4568.9,8.648]
[1755049730926,4.77515568,4569.0,4568.9,8.648]
[1755049731259,6.9638184,4569.0,4568.9,8.648]
[1755049731695,0.55,4568.6,4568.3,5.248]
[1755049731898,0.55,4568.4,4568.3,5.248]
[1755049732097,0.6596,4568.4,4568.3,5.248]
[1755049732983,0.6596,4568.4,4568.3,8.649]
[1755049733565,2.1265,4568.4,4568.3,8.649]
[1755049733778,2.5686,4568.4,4568.3,8.649]
[1755049733980,3.04435028,4568.4,4568.3,8.649]
[1755049734396,2.60225028,4568.4,4568.3,8.649]
[1755049734685,0.6596,4568.4,4568.3,8.649]
[1755049734885,4.75755017,4568.4,4568.3,8.649]
[1755049735115,0.55,4568.0,4567.8,0.001]
[1755049735316,0.6596,4567.9,4567.8,0.001]
[1755049735527,2.5686,4567.9,4567.8,0.001]
[1755049735822,2.82546,4567.9,4567.8,0.001]
[1755049736422,2.82546,4567.9,4567.8,3.402]
[1755049736728,5.01464978,4567.9,4567.8,3.402]
[1755049737301,2.7392377,4567.8,4567.7,0.001]
[1755049737631,4.6482377,4567.8,4567.7,0.001]
[1755049737847,2.73933356,4567.6,4567.4,0.001]
[1755049738029,21.35399871,4567.6,4567.4,0.001]
[1755049738191,23.37259871,4567.6,4567.4,0.001]
[1755049739132,23.37259871,4567.6,4567.5,3.402]